bitfinex-derivatives/quotes_BNBF0:USTF0_20250128
["timestamp","ask_amount","ask_price","bid_price","bid_amount"]
[1738077013735,0.27292047,673.88,672.39,2.86941864]
[1738077013942,0.27292047,673.87,672.4,2.86941864]
[1738077014140,0.27292047,673.9,672.4,2.86941864]
[1738077014335,0.27292047,673.89,672.4,2.86941864]
[1738077014535,0.27292047,673.88,672.4,2.86941864]
[1738077014840,0.27292047,673.88,672.33,0.29747296]
[1738077014841,0.27292047,673.87,672.41,3.16685621]
[1738077015037,0.27291113,673.86,672.42,0.29743315]
[1738077015243,0.27291113,673.9,672.42,0.29743315]
[1738077015440,0.27291113,673.89,672.43,2.86941864]
[1738077015637,0.27291113,673.88,672.43,2.86941864]
[1738077015836,0.27291113,673.9,672.44,0.2974243]
[1738077016037,0.27291113,673.89,672.44,0.2974243]
[1738077016243,0.27291113,673.9,672.45,2.86941864]
[1738077016440,0.27291113,673.89,672.45,2.86941864]
[1738077016743,0.27291113,673.9,672.45,2.86941864]
[1738077016941,0.27291113,673.89,672.45,2.86941864]
[1738077017139,0.27291113,673.88,672.46,2.86941864]
[1738077017338,0.27291113,673.9,672.46,2.86941864]
[1738077017542,0.27291113,673.89,672.47,0.29741103]
[1738077017744,0.27291113,673.9,672.47,0.29741103]
[1738077017945,0.27291113,673.89,672.47,0.29741103]
[1738077018244,0.27291113,673.88,672.48,2.86941864]
[1738077018545,0.27291113,673.88,672.49,2.86941864]
[1738077019247,0.27291113,673.88,672.5,2.86941864]
[1738077019845,0.29679315,673.87,672.51,2.86941864]
[1738077020249,0.27296676,673.86,672.51,2.86941864]
[1738077020650,0.27296676,673.86,672.52,2.86941864]
[1738077021153,0.29680195,673.85,672.53,2.86941864]
[1738077021351,0.27296676,673.84,672.53,2.86941864]
[1738077021649,0.27296676,673.84,672.47,0.29741103]
[1738077021650,0.27296676,673.83,672.54,2.86941864]
[1738077021846,0.27296678,673.82,672.54,2.86941864]
[1738077022251,0.27296678,673.82,672.55,2.86941864]
[1738077022951,0.27296678,673.82,672.56,2.86941864]
[1738077023349,0.27296678,673.81,672.57,1.10314822]
[1738077023548,0.27296678,673.8,672.57,2.86941864]
[1738077023752,0.27296678,673.79,672.57,2.86941864]
[1738077023952,0.27296678,673.78,672.58,2.86941864]
[1738077024149,0.27296678,673.77,672.58,2.86941864]
[1738077024352,0.27296678,673.76,672.59,2.86941864]
[1738077024750,0.27296678,673.75,672.59,2.86941864]
[1738077024954,0.27296678,673.74,672.59,2.86941864]
[1738077025151,0.27296678,673.74,672.47,0.29741103]
[1738077025152,0.27296678,673.74,672.6,2.86941864]
[1738077025350,0.27296678,673.73,672.6,2.86941864]
[1738077025551,0.27296678,673.72,672.6,2.86941864]
[1738077025754,0.27296678,673.71,672.61,2.86941864]
[1738077026053,0.27296678,673.7,672.61,2.86941864]
[1738077026253,0.27296678,673.69,672.61,2.86941864]
[1738077026453,1.5508079,673.83,672.62,2.86941864]
[1738077026454,0.27296678,673.68,672.62,2.86941864]
[1738077026758,0.27296678,673.67,672.62,2.86941864]
[1738077026950,0.27306192,673.66,672.62,2.86941864]
[1738077027148,0.27306192,673.66,672.17,1.09512798]
[1738077027149,0.27306192,673.65,672.63,2.86941864]
[1738077027356,0.27306192,673.64,672.63,2.86941864]
[1738077027654,0.27306192,673.63,672.63,2.86941864]
[1738077027855,0.27306192,673.62,672.63,2.86941864]
[1738077028055,0.27306192,673.61,672.64,2.86941864]
[1738077028258,0.27306192,673.6,672.64,2.86941864]
[1738077028458,0.27306192,673.59,672.64,2.86941864]
[1738077028653,0.27306192,673.58,672.65,2.86941864]
[1738077028852,0.27306192,673.82,672.65,2.86941864]
[1738077029057,0.27306192,673.81,672.65,2.86941864]
[1738077029259,0.27306192,673.8,672.66,2.86941864]
[1738077029456,1.10732102,673.65,672.66,2.86941864]
[1738077029652,0.27306192,673.64,672.67,2.86941864]
[1738077029954,0.27306192,673.63,672.67,2.86941864]
[1738077030259,1.10732102,673.65,672.68,2.86941864]
[1738077030459,0.27307135,673.64,672.68,2.86941864]
[1738077030658,0.71881608,673.82,672.68,2.86941864]
[1738077030659,0.27307135,673.63,672.68,2.86941864]
[1738077030859,0.27307135,673.62,672.68,2.86941864]
[1738077031160,0.27307135,673.61,672.69,2.86941864]
[1738077031360,0.27307135,673.6,672.69,2.86941864]
[1738077031660,0.27307135,673.59,672.69,2.86941864]
[1738077031857,0.27307135,673.58,672.69,2.86941864]
[1738077032058,1.55095189,673.65,672.7,2.86941864]
[1738077032262,0.27300429,673.64,672.7,2.86941864]
[1738077032661,0.27300429,673.67,672.71,2.86941864]
[1738077032963,0.27300429,673.66,672.71,2.86941864]
[1738077033162,0.27300429,673.67,672.71,2.86941864]
[1738077033363,0.27300429,673.66,672.72,2.86941864]
[1738077033563,0.27300429,673.67,672.72,2.86941864]
[1738077033860,0.27300429,673.66,672.72,2.86941864]
[1738077034062,0.27300429,673.67,672.73,2.86941864]
[1738077034256,0.27300429,673.66,672.73,2.86941864]
[1738077034461,0.27300429,673.65,672.13,1.10262079]
[1738077034655,0.27300429,673.64,672.14,0.29755705]
[1738077034858,0.27300429,673.67,672.14,0.29755705]
[1738077035061,0.27300429,673.66,672.14,0.29755705]
[1738077035263,0.27300429,673.67,672.14,0.29755705]
[1738077035560,0.27300429,673.66,672.14,0.29755705]
[1738077035756,0.27300429,673.67,672.15,2.85977788]
[1738077035963,0.27300429,673.66,672.15,2.85977788]
[1738077036365,0.27300429,673.66,672.16,2.85977788]
[1738077036556,0.27300429,673.66,672.17,0.29754377]
[1738077037158,0.29689007,673.65,672.18,2.85977788]
[1738077037359,0.27298812,673.64,672.24,1.10262079]
[1738077038266,0.27298812,673.64,672.25,2.85977788]
[1738077038760,0.27298812,673.64,672.26,2.85977788]
[1738077039666,0.27298812,673.64,672.27,2.85977788]
[1738077040267,0.27298812,673.64,672.28,2.85977788]
[1738077040768,0.27303016,673.63,672.29,2.85977788]
[1738077040967,0.27303016,673.64,672.29,2.85977788]
[1738077041170,0.27303016,673.63,672.29,2.85977788]
[1738077041469,0.27303016,673.62,672.3,2.85977788]
[1738077041669,0.27303016,673.64,672.3,2.85977788]
[1738077041967,0.27303016,673.64,672.31,2.85977788]
[1738077042362,0.29689007,673.65,672.31,2.85977788]
[1738077042566,0.27304955,673.64,672.32,2.85977788]
[1738077043265,0.27304955,673.64,672.33,2.85977788]
[1738077043867,0.27304955,673.64,672.34,2.85977788]
[1738077044464,0.27304955,673.64,672.17,0.29754377]
[1738077044465,0.27304955,673.64,672.35,2.85977788]
[1738077044865,0.27304955,673.64,672.36,2.85977788]
[1738077045668,0.29689889,673.63,672.37,2.85977788]
[1738077045871,0.27304955,673.62,672.37,2.85977788]
[1738077046265,0.2969077,673.61,672.38,2.85977788]
[1738077046466,0.27304955,673.6,672.38,2.85977788]
[1738077046869,1.55127453,673.59,672.39,1.75986331]
[1738077047069,0.27304955,673.58,672.39,2.85977788]
[1738077047567,0.27304955,673.58,672.4,2.85977788]
[1738077047766,0.2969077,673.61,672.4,2.85977788]
[1738077048268,0.27300037,673.6,672.41,2.85977788]
[1738077048869,0.27300037,673.6,672.42,2.85977788]
[1738077049669,0.29691652,673.59,672.43,2.85977788]
[1738077049868,0.27300037,673.58,672.43,2.85977788]
[1738077050168,0.29692533,673.57,672.43,2.85977788]
[1738077050364,0.27300037,673.56,672.43,2.85977788]
[1738077050569,0.29693415,673.55,672.43,2.85977788]
[1738077050769,0.27300037,673.54,672.43,2.85977788]
[1738077050969,0.56993893,673.54,672.43,2.85977788]
[1738077051169,0.56994334,673.53,672.43,2.85977788]
[1738077051370,0.27300037,673.52,672.43,2.85977788]
[1738077051866,0.29695178,673.51,672.43,2.85977788]
[1738077052063,0.27300037,673.5,672.43,2.85977788]
[1738077053070,0.2969606,673.49,672.43,2.85977788]
[1738077053372,0.27300037,673.48,672.44,2.85977788]
[1738077053571,0.27300037,673.48,672.45,2.85977788]
[1738077053773,0.29696942,673.47,672.45,2.85977788]
[1738077053972,0.27300037,673.46,672.45,2.85977788]
[1738077054167,0.5699742,673.46,672.45,2.85977788]
[1738077054370,0.27300037,673.45,672.45,2.85977788]
[1738077054571,0.27300037,673.45,672.46,2.85977788]
[1738077055174,0.29697383,673.46,672.47,2.85977788]
[1738077055475,0.27311374,673.45,672.47,2.85977788]
[1738077055971,0.27311374,673.45,672.28,1.10262079]
[1738077055972,0.27311374,673.45,672.48,2.85977788]
[1738077056974,0.27311374,673.45,672.49,2.85977788]
[1738077057475,0.29698265,673.44,672.5,2.85977788]
[1738077057676,0.27311374,673.43,672.5,2.85977788]
[1738077057976,0.27311374,673.43,672.51,2.85977788]
[1738077057977,0.29699147,673.42,672.51,2.85977788]
[1738077058168,0.27311374,673.41,672.51,2.85977788]
[1738077058368,1.8246361,673.41,672.52,2.85977788]
[1738077058571,0.27311374,673.4,672.52,2.85977788]
[1738077058974,0.27311374,673.4,672.53,2.85977788]
[1738077059373,0.27311374,673.4,672.54,2.85977788]
[1738077060176,0.27311374,673.4,672.55,2.85977788]
[1738077060376,0.2970047,673.39,672.55,2.85977788]
[1738077060776,0.2970047,673.39,672.56,2.85977788]
[1738077061179,0.2970047,673.39,672.57,2.85977788]
[1738077061680,0.2970047,673.39,672.58,2.85977788]
[1738077062372,0.2970047,673.39,672.59,2.85977788]
[1738077062776,0.2970047,673.39,672.6,2.85977788]
[1738077063174,0.2970047,673.39,672.61,2.85977788]
[1738077064078,0.2970047,673.39,672.62,2.85977788]
[1738077064675,0.2970047,673.39,672.63,2.85977788]
[1738077065374,0.2970047,673.39,672.64,2.85977788]
[1738077065779,0.2970047,673.39,672.65,2.85977788]
[1738077066080,0.27314197,673.38,672.65,2.85977788]
[1738077066474,0.27314197,673.38,672.66,2.85977788]
[1738077067080,0.27314197,673.38,672.67,1.09991457]
[1738077067978,0.27314197,673.37,672.67,1.09991457]
[1738077068181,0.27314197,673.38,672.68,1.09991457]
[1738077068382,0.27314197,673.37,672.68,1.09991457]
[1738077068683,0.27314197,673.36,672.68,1.09991457]
[1738077068983,0.27314197,673.35,672.69,1.09991457]
[1738077069281,0.27314197,673.34,672.69,1.09991457]
[1738077069484,0.2970047,673.39,672.21,2.85977788]
[1738077069485,0.27314197,673.33,672.21,2.85977788]
[1738077069685,0.27314197,673.32,672.21,2.85977788]
[1738077069984,0.27319693,673.31,672.22,2.85977788]
[1738077070284,0.27319693,673.3,672.22,2.85977788]
[1738077070479,0.27319693,673.38,672.22,2.85977788]
[1738077070683,0.27319693,673.37,672.23,2.85977788]
[1738077070883,0.27319693,673.38,672.23,2.85977788]
[1738077071083,0.27319693,673.37,671.85,1.10656352]
[1738077071284,1.82522672,673.37,671.85,1.10656352]
[1738077071581,0.27319693,673.36,671.85,1.10656352]
[1738077074191,0.27319693,673.33,671.88,2.8814295]
[1738077074390,0.27319693,673.32,671.89,2.8814295]
[1738077074592,0.27319693,673.33,671.89,2.8814295]
[1738077074791,0.27319693,673.32,671.89,2.8814295]
[1738077074990,0.27319693,673.33,671.9,2.8814295]
[1738077075187,0.29702676,673.34,671.9,2.8814295]
[1738077075188,0.27319693,673.31,671.9,2.8814295]
[1738077075388,0.29702676,673.34,671.9,2.8814295]
[1738077075389,0.27319693,673.3,671.9,2.8814295]
[1738077075591,0.27319693,673.33,671.91,0.29765891]
[1738077075790,0.29702676,673.34,671.91,0.29765891]
[1738077075791,0.27319693,673.32,671.91,3.17908841]
[1738077076091,0.27319693,673.31,671.91,3.17908841]
[1738077076289,0.27319693,673.33,671.91,3.17908841]
[1738077076485,0.27319693,673.32,671.92,2.8814295]
[1738077076687,0.29702676,673.34,671.92,2.8814295]
[1738077077091,0.27308938,673.33,671.93,2.8814295]
[1738077077591,0.27308938,673.33,671.94,2.8814295]
[1738077077991,0.27308938,673.33,671.95,2.8814295]
[1738077078383,0.27308938,673.33,671.96,2.8814295]
[1738077078791,0.27309825,673.32,672.1,1.10656352]
[1738077078985,0.27309825,673.33,672.1,1.10656352]
[1738077079191,0.27309825,673.32,672.11,2.8814295]
[1738077079385,0.27309825,673.33,672.11,2.8814295]
[1738077079591,0.27309825,673.32,672.11,2.8814295]
[1738077079787,0.27309825,673.31,672.11,2.8814295]
[1738077079992,0.27309825,673.33,672.11,2.8814295]
[1738077080193,0.27309825,673.32,672.11,2.8814295]
[1738077080394,0.29702676,673.34,672.12,2.8814295]
[1738077080593,0.2730831,673.33,672.13,1.77318739]
[1738077080789,0.2730831,673.33,672.13,2.8814295]
[1738077080988,0.2730831,673.33,672.14,2.8814295]
[1738077081391,0.2730831,673.33,672.15,2.8814295]
[1738077081993,0.2730831,673.33,672.16,2.8814295]
[1738077082194,0.29702676,673.34,672.16,2.8814295]
[1738077082589,0.29702676,673.34,672.17,2.8814295]
[1738077083193,0.29702676,673.34,672.18,2.8814295]
[1738077083895,0.29702676,673.34,672.19,2.8814295]
[1738077084495,0.29702676,673.34,672.2,2.8814295]
[1738077085197,0.29702676,673.34,672.21,2.8814295]
[1738077085597,0.29702676,673.34,672.22,2.8814295]
[1738077086296,0.29702676,673.34,672.23,2.8814295]
[1738077086796,0.29702676,673.34,672.24,2.8814295]
[1738077087391,0.29702676,673.34,672.25,1.10824211]
[1738077087597,0.29702676,673.34,672.25,2.8814295]
[1738077087998,0.29702676,673.34,672.26,2.8814295]
[1738077088393,0.29702676,673.34,672.27,1.77318739]
[1738077088597,0.29702676,673.34,672.27,2.8814295]
[1738077088996,0.29702676,673.34,672.28,2.8814295]
[1738077089398,0.29702676,673.34,672.29,2.8814295]
[1738077090494,0.29702676,673.34,672.3,2.8814295]
[1738077090898,0.29702676,673.34,672.31,2.8814295]
[1738077091702,0.29702676,673.34,672.32,2.8814295]
[1738077092200,0.29702676,673.34,672.33,2.8814295]
[1738077092599,0.29702676,673.34,672.34,2.8814295]
[1738077093003,0.29702676,673.34,672.35,2.8814295]
[1738077093803,0.29702676,673.34,672.36,2.8814295]
[1738077094298,0.29702676,673.34,672.37,1.10824211]
[1738077094503,0.29702676,673.34,672.37,2.8814295]
[1738077094901,0.29702676,673.34,672.38,2.8814295]
[1738077095900,0.29702676,673.34,672.39,2.8814295]
[1738077096902,0.29702676,673.34,672.4,2.8814295]
[1738077097298,0.29702676,673.34,672.41,2.8814295]
[1738077097897,0.29702676,673.34,672.42,2.8814295]
[1738077098097,3.61467316,675.95,672.42,2.8814295]
[1738077098300,1.55092885,673.88,672.42,2.8814295]
[1738077098802,0.2959543,675.78,671.91,0.29765891]
[1738077098803,1.55085397,673.87,672.43,2.8814295]
[1738077099201,1.55085397,673.87,671.91,0.29765891]
[1738077099202,0.29679755,673.86,672.44,2.8814295]
[1738077099904,0.29679755,673.86,672.45,2.8814295]
[1738077100604,0.29679755,673.86,672.46,2.8814295]
[1738077101399,0.29679755,673.86,672.47,2.8814295]
[1738077102103,0.29679755,673.86,672.48,2.8814295]
[1738077102698,0.29679755,673.86,672.49,2.8814295]
[1738077103201,0.29679755,673.86,672.5,2.8814295]
[1738077103905,0.29679755,673.86,672.51,2.8814295]
[1738077104505,0.27294832,673.85,672.51,2.8814295]
[1738077104708,0.29680636,673.84,672.52,2.8814295]
[1738077105108,0.27294832,673.83,672.52,2.8814295]
[1738077105303,0.27294832,673.83,672.53,2.8814295]
[1738077105702,0.29681517,673.82,672.53,2.8814295]
[1738077105908,0.29681517,673.82,672.54,2.8814295]
[1738077106206,0.27294832,673.81,672.55,2.8814295]
[1738077106408,0.29682398,673.8,672.55,2.8814295]
[1738077106607,0.27294832,673.79,672.55,2.8814295]
[1738077106907,0.29683279,673.78,672.55,2.8814295]
[1738077107105,0.27294832,673.77,672.55,2.8814295]
[1738077107308,0.2968416,673.76,672.56,1.10824211]
[1738077107503,0.2968416,673.76,672.56,2.8814295]
[1738077108010,0.2968416,673.76,672.57,2.8814295]
[1738077109014,0.2968416,673.76,672.58,2.8814295]
[1738077109514,0.2968416,673.76,672.59,2.8814295]
[1738077109913,0.2968416,673.76,672.28,1.09831725]
[1738077109914,0.27294354,673.75,672.6,2.8814295]
[1738077110613,0.2968416,673.76,672.61,2.8814295]
[1738077110614,0.27294312,673.74,672.61,2.8814295]
[1738077110813,0.27294312,673.73,672.61,2.8814295]
[1738077111110,0.27294312,673.72,672.62,2.8814295]
[1738077111312,0.27294312,673.71,672.62,2.8814295]
[1738077111509,0.27294312,673.7,672.63,2.8814295]
[1738077111712,0.27294312,673.69,672.63,2.8814295]
[1738077111913,0.27294312,673.68,672.63,2.8814295]
[1738077112114,0.2968416,673.76,672.63,2.8814295]
[1738077112414,0.27292758,673.75,672.63,2.8814295]
[1738077112715,0.27292758,673.75,672.64,2.8814295]
[1738077113213,0.27292758,673.75,672.65,2.8814295]
[1738077113707,0.27292758,673.75,672.66,2.8814295]
[1738077114108,0.2968416,673.76,672.66,2.8814295]
[1738077114317,0.27291682,673.75,672.66,2.8814295]
[1738077114815,0.27291682,673.75,672.67,2.8814295]
[1738077115515,0.27291682,673.75,672.68,2.8814295]
[1738077115915,0.27291682,673.75,672.69,2.8814295]
[1738077116617,0.2968416,673.76,672.7,2.8814295]
[1738077116916,0.27288929,673.75,672.7,2.8814295]
[1738077117316,0.2968416,673.76,672.71,2.8814295]
[1738077118017,0.2968416,673.76,672.72,2.8814295]
[1738077118714,0.2968416,673.76,672.73,2.8814295]
[1738077119111,0.2968416,673.76,672.74,2.8814295]
[1738077119515,0.2968416,673.76,672.75,2.8814295]
[1738077120110,0.2968416,673.76,672.76,2.8814295]
[1738077120816,0.2968416,673.76,672.77,2.8814295]
[1738077121013,0.2968416,673.76,672.78,2.8814295]
[1738077121616,0.2968416,673.76,672.45,1.09831725]
[1738077121811,0.2968416,673.76,672.46,0.29741545]
[1738077122814,0.2968416,673.76,672.47,2.86061772]
[1738077123013,0.2968416,673.76,672.48,0.29740661]
[1738077123212,0.2968416,673.76,672.48,4.25634158]
[1738077124019,0.2968416,673.76,672.49,2.86061772]
[1738077124317,0.2968416,673.76,672.5,0.29739776]
[1738077124515,0.2968416,673.76,672.51,2.86061772]
[1738077124714,0.2968416,673.76,672.52,0.29738892]
[1738077125016,0.2968416,673.76,672.53,2.86061772]
[1738077125218,0.2968416,673.76,672.54,0.29738008]
[1738077125615,0.2968416,673.76,672.55,2.86061772]
[1738077125816,0.2968416,673.76,672.56,0.29737123]
[1738077126117,0.2968416,673.76,672.57,2.86061772]
[1738077126717,0.2968416,673.76,672.58,2.86061772]
[1738077127817,0.2968416,673.76,672.59,2.86061772]
[1738077128618,0.2968416,673.76,672.6,2.86061772]
[1738077129020,0.2968416,673.76,672.61,0.29734913]
[1738077129420,0.2968416,673.76,672.61,3.15796685]
[1738077130016,0.2968416,673.76,672.62,2.86061772]
[1738077130721,0.2968416,673.76,672.61,0.29734913]
[1738077130722,0.2968416,673.76,672.63,2.86061772]
[1738077131120,0.2968416,673.76,672.64,2.86061772]
[1738077132217,0.2968416,673.76,672.65,2.86061772]
[1738077132414,0.2968416,673.76,672.65,3.15794917]
[1738077132623,0.2968416,673.76,672.66,0.29732703]
[1738077132822,0.2968416,673.76,672.66,3.15794475]
[1738077133319,0.2968416,673.76,672.67,2.86061772]
[1738077133923,0.2968416,673.76,672.68,2.86061772]
[1738077134620,0.2968416,673.76,672.69,2.86061772]
[1738077135223,0.2968416,673.76,672.7,2.86061772]
[1738077135424,0.2968416,673.76,672.7,3.95893497]
[1738077135718,0.2968416,673.76,672.71,2.86061772]
[1738077136423,0.2968416,673.76,672.72,2.86061772]
[1738077136918,0.2968416,673.76,672.73,2.86061772]
[1738077137423,0.2968416,673.76,672.74,2.86061772]
[1738077138426,0.2968416,673.76,672.75,2.86061772]
[1738077139025,0.2968416,673.76,672.76,2.86061772]
[1738077139727,0.2968416,673.76,672.77,2.86061772]
[1738077140428,0.2968416,673.76,672.78,2.86061772]
[1738077140928,0.2968416,673.76,672.79,2.86061772]
[1738077141728,0.2968416,673.76,672.8,1.10023758]
[1738077141930,0.2968416,673.76,672.8,2.86061772]
[1738077142731,0.2968416,673.76,672.81,2.86061772]
[1738077143528,0.2968416,673.76,672.82,2.86061772]
[1738077144125,0.2968416,673.76,672.83,2.86061772]
[1738077144833,0.2968416,673.76,672.84,2.86061772]
[1738077145132,0.2968416,673.76,672.85,2.86061772]
[1738077145529,1.10440178,674.42,672.85,2.86061772]
[1738077145733,0.56926928,674.41,672.86,2.86061772]
[1738077145930,0.27271378,674.4,672.86,2.86061772]
[1738077146729,0.27271378,674.4,672.87,2.86061772]
[1738077147733,0.27271378,674.4,672.88,2.86061772]
[1738077147933,0.27271378,674.4,672.89,0.2972254]
[1738077148628,0.27271378,674.4,673.07,1.09831725]
[1738077149031,0.27271378,674.4,673.08,2.86061772]
[1738077149930,0.27271378,674.4,673.09,2.86061772]
[1738077150527,0.27271378,674.4,673.1,2.86061772]
[1738077150930,0.27271378,674.4,673.07,1.09831725]
[1738077150931,0.27271378,674.4,673.11,2.86061772]
[1738077151731,0.27271378,674.4,673.12,2.86061772]
[1738077151932,0.27271378,674.4,673.13,2.86061772]
[1738077152632,0.27271378,674.4,673.14,2.86061772]
[1738077153129,0.27271378,674.4,673.15,2.86061772]
[1738077153532,0.27271378,674.4,673.16,2.86061772]
[1738077154229,0.27271378,674.4,673.17,2.86061772]
[1738077154731,0.2965555,674.41,673.17,2.86061772]
[1738077155027,0.2965555,674.41,673.18,2.86061772]
[1738077155729,0.2965555,674.41,673.19,2.86061772]
[1738077156534,0.2965555,674.41,673.2,2.86061772]
[1738077157136,0.2965555,674.41,673.21,2.86061772]
[1738077157730,0.2965555,674.41,673.22,2.86061772]
[1738077158536,0.2965555,674.41,673.23,2.86061772]
[1738077159036,0.2965555,674.41,673.24,0.29707088]
[1738077159531,0.2965555,674.41,673.25,2.86061772]
[1738077160835,0.2965555,674.41,673.26,2.86061772]
[1738077161230,0.2965555,674.41,673.27,2.86061772]
[1738077161934,0.2965555,674.41,673.28,2.86061772]
[1738077162333,0.2965555,674.41,673.29,2.86061772]
[1738077162932,0.2965555,674.41,673.3,2.86061772]
[1738077163536,0.2965555,674.41,673.31,2.85540616]
[1738077164440,0.27262354,674.4,673.32,2.85540616]
[1738077165239,0.27262354,674.4,673.33,2.85540616]
[1738077165743,0.2965555,674.41,673.33,2.85540616]
[1738077166041,0.2965555,674.41,673.34,2.85540616]
[1738077166442,0.27261782,674.4,673.34,2.85540616]
[1738077166643,0.2965555,674.41,673.34,2.85540616]
[1738077166844,0.27262129,674.4,673.34,2.85540616]
[1738077167340,0.27262129,674.4,673.35,2.85540616]
[1738077167740,0.27262609,674.39,673.35,2.85540616]
[1738077167944,0.2965555,674.41,673.36,2.85540616]
[1738077167945,0.27262609,674.4,673.36,2.85540616]
[1738077168443,0.27262609,674.4,673.37,2.85540616]
[1738077168645,0.2965555,674.41,673.37,2.85540616]
[1738077169240,0.27263953,674.39,673.38,2.85540616]
[1738077169442,0.27263953,674.4,673.38,2.85540616]
[1738077169642,0.27263953,674.39,673.38,2.85540616]
[1738077169840,0.27263953,674.4,673.39,2.85540616]
[1738077170044,0.27263953,674.39,673.39,2.85540616]
[1738077170344,0.27263953,674.38,673.39,2.85540616]
[1738077170545,0.27263953,674.4,673.39,2.85540616]
[1738077170740,0.27263953,674.39,673.4,2.85540616]
[1738077170945,0.27263953,674.38,673.4,2.85540616]
[1738077171145,0.27263953,674.37,673.41,2.85540616]
[1738077171346,0.27263953,674.4,673.41,2.85540616]
[1738077171540,0.27263953,674.39,673.41,2.85540616]
[1738077171744,0.27263953,674.39,673.42,2.85540616]
[1738077171947,0.27263953,674.38,673.42,2.85540616]
[1738077172148,0.27263953,674.4,673.42,2.85540616]
[1738077172346,0.2965555,674.41,673.43,2.85540616]
[1738077172651,0.27262225,674.4,673.43,2.85540616]
[1738077172848,0.2965555,674.41,673.43,2.85540616]
[1738077174845,0.2965555,674.41,673.44,2.85540616]
[1738077175248,0.2965555,674.41,673.45,2.85540616]
[1738077175651,0.2965555,674.41,673.46,2.85540616]
[1738077176247,0.2965555,674.41,673.47,2.85540616]
[1738077176849,0.2965555,674.41,673.48,2.85540616]
[1738077177653,0.2965555,674.41,673.49,2.85540616]
[1738077178254,0.2965555,674.41,673.5,2.85540616]
[1738077178956,0.2965555,674.41,673.24,0.29707088]
[1738077178957,0.2965555,674.41,673.51,2.85540616]
[1738077180058,0.2965555,674.41,673.52,2.85540616]
[1738077180472,0.2965555,674.41,673.53,2.85540616]
[1738077181055,0.2965555,674.41,673.54,2.85540616]
[1738077181652,0.2965555,674.41,673.24,0.29707088]
[1738077181653,0.2965555,674.41,673.55,2.85540616]
[1738077182055,0.2965555,674.41,673.56,2.85540616]
[1738077182455,0.2965555,674.41,673.57,2.85540616]
[1738077183159,0.2965555,674.41,673.58,2.85540616]
[1738077183858,0.2965555,674.41,673.59,2.85540616]
[1738077184359,0.2965555,674.41,673.6,2.85540616]
[1738077185060,0.2965555,674.41,673.61,2.85540616]
[1738077185862,0.2965555,674.41,673.62,2.85540616]
[1738077186455,0.2965555,674.41,673.63,2.85540616]
[1738077187060,0.2965555,674.41,673.64,2.85540616]
[1738077187655,0.2965555,674.41,673.65,2.85540616]
[1738077188055,0.2965555,674.41,673.66,2.85540616]
[1738077188756,0.2965555,674.41,673.67,2.85540616]
[1738077189460,0.2965555,674.41,673.24,0.29707088]
[1738077189461,0.2965555,674.41,673.68,2.85540616]
[1738077190054,0.2965555,674.41,673.69,2.85540616]
[1738077191061,0.2965555,674.41,673.7,2.85540616]
[1738077191257,0.2726215,674.4,673.7,2.85540616]
[1738077191562,0.27263362,674.39,673.71,2.85540616]
[1738077191761,0.27263362,674.4,673.71,2.85540616]
[1738077191958,0.27263362,674.39,673.72,2.85540616]
[1738077192257,0.27263362,674.38,673.72,2.85540616]
[1738077192461,0.2965555,674.41,673.72,2.85540616]
[1738077192462,0.27263362,674.4,673.72,2.85540616]
[1738077192758,0.27263362,674.39,673.72,2.85540616]
[1738077192961,0.27263362,674.4,673.73,2.85540616]
[1738077193160,0.2726234,674.39,673.73,2.85540616]
[1738077193361,0.2726234,674.38,673.73,2.85540616]
[1738077193561,0.2726234,674.4,673.74,2.85540616]
[1738077193762,0.2726234,674.39,673.74,2.85540616]
[1738077193959,0.2726234,674.4,673.74,2.85540616]
[1738077194159,0.2726234,674.39,673.75,2.85540616]
[1738077194359,0.2726234,674.38,673.75,2.85540616]
[1738077194563,0.2726234,674.4,673.75,2.85540616]
[1738077194759,0.2965555,674.41,673.75,2.85540616]
[1738077194760,0.2726234,674.37,673.75,2.85540616]
[1738077195059,0.2965555,674.41,673.76,2.85540616]
[1738077195262,0.27262143,674.4,673.77,2.85540616]
[1738077195459,0.2965555,674.41,673.77,2.85540616]
[1738077196058,0.2965555,674.41,673.78,2.85540616]
[1738077196259,0.2965555,674.41,673.79,2.85540616]
[1738077197163,0.2965555,674.41,673.8,2.85540616]
[1738077197666,0.2965555,674.41,673.24,0.29707088]
[1738077197667,0.2965555,674.41,673.81,2.85540616]
[1738077197865,0.2965555,674.41,673.82,1.09823314]
[1738077198065,0.2965555,674.41,673.83,1.09823314]
[1738077198265,1.54839858,674.87,673.83,1.09823314]
[1738077198464,0.56889484,674.86,673.83,1.09823314]
[1738077198664,0.27253708,674.85,673.83,1.09823314]
[1738077198860,0.27253708,674.85,673.84,2.85540616]
[1738077199362,0.27253708,674.85,673.85,2.85540616]
[1738077199867,0.29635776,674.86,673.85,2.85540616]
[1738077200065,0.27256531,674.85,673.85,2.85540616]
[1738077200265,0.27256531,674.85,673.86,2.85540616]
[1738077200865,0.27256531,674.85,673.87,2.85540616]
[1738077201361,0.27256531,674.85,673.88,2.85540616]
[1738077201561,0.27257244,674.84,673.88,2.85540616]
[1738077201762,0.29637093,674.83,673.89,2.85540616]
[1738077201959,0.27257244,674.82,673.89,2.85540616]
[1738077202362,0.27257244,674.82,673.9,2.85540616]